[Event "1st Jeddah Young Masters 2024"]
[Site "Jeddah"]
[Date "2024.01.29"]
[Round "8.1"]
[White "Murzin, Volodar"]
[Black "Francisco Guecamburu, Candela Be"]
[Result "1-0"]
[ECO "B28"]
[WhiteElo "2635"]
[BlackElo "2295"]
[Annotator "TA"]
[PlyCount "99"]
[EventDate "2024.01.24"]
[EventType "tourn"]
[SourceTitle "playchess.com"]
[Source "ChessBase"]
[SourceQuality "1"]
[TimeControl "5400+30"]

{[%evp 9,98,-26,0,-15,22,18,21,5,0,21,33,0,33,0,0,0,0,0,0,0,0,-22,0,0,23,36,25,26,39,30,37,38,60,63,67,65,75,60,70,56,91,94,89,88,81,81,92,76,114,118,122,115,175,122,265,239,377,371,417,399,413,409,353,360,537,535,1272,1208,5206,5206,5097,4132,29977,29978,29976,29978,29978,29977,29990,29991,29993,29994,29995,29996,29996,29997,29997,29997,29998,29999,29999]} 1. e4 {[%emt 0:00:03]} c5 {[%emt 0:00:15]} 2. Nf3 {[%emt 0:00:06]} a6 {[%emt 0:00:08]} 3. c3 {[%emt 0:11:32]} d5 {[%emt 0:00:32]} 4. e5 {[%emt 0:00:20]} Nc6 {[%emt 1:31:35]} 5. h3 {[%emt 0:02:46]} d4 {[%emt 0:00:00]} 6. d3 {[%emt 0:03:29]} g6 {[%emt 0:00:00]} 7. Bf4 {[%emt 0:10:17]} Bg7 {[%emt 0:00:00]} 8. Nbd2 {[%emt 0:02:37] The position is equal.} f6 {[%emt 0:00:00][%cal Rf6e5]} 9. cxd4 {[%emt 0:14:00]} cxd4 {[%emt 0:00:00][%cal Rf6e5]} 10. Be2 {[%emt 0:50:20]} Nh6 {[%emt 0:00:00][%cal Rf6e5]} 11. Qb3 {[%emt 0:00:00]} fxe5 {[%emt 0:00:00]} 12. Bxh6 {[%emt 0:00:00]} Bxh6 {[%emt 0:00:00]} 13. O-O {[%emt 0:00:00]} Na5 {[%emt 0:00:00]} 14. Qb4 {[%emt 0:00:00]} Nc6 {[%emt 0:00:00]} 15. Qc4 {[%emt 0:00:00]} Na5 {[%emt 0:00:00]} 16. Qc2 {[%emt 0:00:00]} Be6 {[%emt 0:00:00]} 17. Nxe5 {[%emt 0:00:00] A dynamic duo of knights.} Rc8 {[%emt 0:00:00]} 18. Qd1 {[%emt 0:00:00]} O-O {[%emt 0:00:00]} 19. Bg4 {[%emt 0:00:00]} Bxg4 {[%emt 0:00:00]} 20. Nxg4 {[%emt 0:00:00][%cal Be5g4,Bg4h2,Bh2f3,Bf3g5,Bg5e4][%mdl 32]} Bxd2 {[%emt 0:00:00]} 21. Qxd2 {[%emt 0:00:00]} Qd5 {[%emt 0:00:10]} 22. Rfe1 {[%emt 0:00:00]} Nc6 {[%emt 0:00:07] Against Re5} 23. Re4 {[%emt 0:00:00]} h5 {[%emt 0:02:13]} 24. Nh2 $36 {[%emt 0:00:00][%mdl 2048] White has good play.} Rf6 {[%emt 0:00:28]} 25. Nf3 {[%emt 0:00:00]} Kg7 {[%emt 0:01:47]} 26. Ng5 {[%emt 0:00:00]} e5 {[%emt 0:01:13]} 27. Re2 {[%emt 0:00:04]} Rcf8 {[%emt 0:00:42]} 28. a3 {[%emt 0:00:56][%cal Ba2a3,Ba3a4,Ba4b5][%mdl 32]} Rf4 {[%emt 0:00:57]} 29. Rc1 {[%emt 0:00:20]} Qd7 {[%emt 0:00:53]} 30. Ne4 {[%emt 0:01:14] White is more active.} Qf5 {[%emt 0:01:03]} (30... R4f7 $16 31. b4 Rg8) 31. b4 {[%emt 0:01:09]} (31. Qc2 $18) 31... g5 {[%emt 0:00:35] A mistake that costs the game.} (31... Qf7 $16 32. Rc4 h4) 32. a4 $18 {[%emt 0:00:31]} g4 {[%emt 0:00:25]} (32... Qd7 $142 33. b5 (33. Nxg5 Qe7 $18) 33... axb5 34. axb5 (34. Nxg5 bxa4 35. Qa2 R8f6 $14) 34... Nd8) 33. b5 {[%emt 0:01:18]} axb5 {[%emt 0:00:26]} 34. axb5 {[%emt 0:00:02]} Nd8 {[%emt 0:02:17]} 35. Rc7+ {[%emt 0:01:14]} Kg6 {[%emt 0:00:49]} 36. h4 {[%emt 0:00:34]} b6 {[%emt 0:01:15]} (36... Rf7 {was worth a try.}) 37. Qa2 {[%emt 0:02:10]} Rf7 {[%emt 0:00:36]} 38. Nd6 {[%emt 0:02:13]} Qxd3 {[%emt 0:00:02]} 39. Nxf7 {[%emt 0:00:28]} Rxf7 {[%emt 0:01:00] [#]} 40. Rxe5 $1 {[%emt 0:01:02]} Rxc7 {[%emt 0:00:29]} (40... g3 41. Rg5+) 41. Qg8+ {[%emt 0:00:02] White mates.} Kf6 {[%emt 0:00:29] [#]} 42. Qg5+ $1 {[%emt 0:00:07]} ({Less strong is} 42. Qxd8+ Kxe5 43. Qxc7+ Kd5 $14) 42... Kf7 {[%emt 0:00:04]} 43. Qxd8 {[%emt 0:00:44] KQR-KQR} Qd1+ {[%emt 0:00:44]} 44. Kh2 {[%emt 0:00:02]} Qc2 {[%emt 0:00:18]} 45. Qe8+ {[%emt 0:00:22]} Kf6 {[%emt 0:00:34]} 46. Qe6+ {[%emt 0:00:06]} Kg7 {[%emt 0:00:06]} 47. Rg5+ {[%emt 0:00:06]} Kh7 {[%emt 0:00:24]} 48. Qg8+ {[%emt 0:00:10]} Kh6 {[%emt 0:00:05] [#]} 49. Rxh5+ $3 {[%emt 0:00:06][%mdl 512]} Kxh5 {[%emt 0:00:05]} 50. Qg5# {[%emt 0:00:02] Weighted Error Value: White=0.06 (flawless) /Black=0.43.  Mistake:       	White=1     	Black=4      Inaccurate:     	White=2     	Black=6      OK:         	White=16    	Black=8      Best:        	White=1     	---} 1-0

[Event "1st Jeddah Young Masters 2024"]
[Site "Jeddah"]
[Date "2024.01.29"]
[Round "8.2"]
[White "Klimkowski, Jan"]
[Black "Pranav Vijay"]
[Result "1/2-1/2"]
[ECO "B51"]
[WhiteElo "2531"]
[BlackElo "2611"]
[Annotator "TA"]
[PlyCount "79"]
[EventDate "2024.01.24"]
[EventType "tourn"]
[SourceTitle "playchess.com"]
[Source "ChessBase"]
[SourceQuality "1"]
[TimeControl "5400+30"]

{[%evp 9,79,0,17,3,12,4,24,0,0,0,0,0,0,0,0,0,0,0,0,0,0,0,0,0,7,15,17,0,0,0,9,0,10,7,8,0,0,2,0,0,4,4,11,0,0,0,0,0,4,0,17,0,0,0,13,0,8,0,23,0,0,0,0,0,0,0,0,0,0,0,0,0]} 1. e4 {[%emt 0:00:02]} c5 {[%emt 0:03:08]} 2. Nf3 {[%emt 0:00:13]} d6 {[%emt 0:00:07]} 3. Bb5+ {[%emt 0:01:35]} Nd7 {[%emt 0:00:52]} 4. Ba4 {[%emt 0:01:18]} a6 {[%emt 0:04:23]} 5. c4 {[%emt 0:00:43]} Ngf6 {[%emt 0:02:05]} 6. Nc3 {[%emt 0:01:53]} e6 {[%emt 0:00:30]} 7. O-O {[%emt 0:01:11]} Be7 {[%emt 0:00:13]} 8. d3 {[%emt 0:05:07] White has an edge.} O-O {[%emt 0:01:22]} 9. h3 {[%emt 0:01:07]} Ne5 {[%emt 0:23:10]} 10. Nxe5 {[%emt 0:13:29]} dxe5 {[%emt 0:00:02]} 11. Be3 {[%emt 0:00:52]} Bd7 {[%emt 0:03:32]} 12. a3 {[%emt 0:03:50]} Rb8 {[%emt 0:04:12]} 13. Bxd7 {[%emt 0:03:04]} Nxd7 {[%emt 0:04:22]} 14. Rb1 {[%emt 0:04:35]} Qc7 {[%emt 0:05:35]} 15. Qc2 {[%emt 0:06:47]} Rbc8 {[%emt 0:05:44]} 16. Rfc1 {[%emt 0:04:54]} Rfd8 {[%emt 0:02:51]} 17. b4 {[%emt 0:01:49]} b6 {[%emt 0:01:28]} 18. Qb3 {[%emt 0:06:50]} h6 {[%emt 0:02:04]} 19. Na4 {[%emt 0:01:23]} Rb8 {[%emt 0:00:44]} 20. Qc3 {[%emt 0:02:30]} f5 {[%emt 0:05:09]} 21. Qc2 {[%emt 0:02:33]} Rbc8 {[%emt 0:06:18]} (21... f4 $5 22. Bd2 $8 Rbc8 $11) 22. bxc5 {[%emt 0:05:22]} bxc5 {[%emt 0:00:55]} 23. Rb2 {[%emt 0:02:30]} Rb8 {[%emt 0:03:45]} (23... f4 $5 24. Bd2 $8 Rb8 $11) 24. Rcb1 {[%emt 0:03:20]} Rxb2 {[%emt 0:02:22]} 25. Rxb2 {[%emt 0:00:15]} Qc6 {[%emt 0:03:16]} 26. f3 {[%emt 0:05:30]} Bh4 {[%emt 0:00:50]} 27. Kf1 {[%emt 0:01:44]} Kh7 {[%emt 0:04:40]} 28. Rb1 {[%emt 0:04:44]} Be7 {[%emt 0:04:46]} 29. Bf2 {[%emt 0:00:24]} Qc7 {[%emt 0:03:49]} 30. Qb3 {[%emt 0:02:35]} Rb8 {[%emt 0:00:46]} 31. Qc2 {[%emt 0:00:05]} Rd8 {[%emt 0:00:51]} 32. Qb3 {[%emt 0:01:39]} Qd6 {[%emt 0:01:52]} 33. Qc2 {[%emt 0:00:49]} Qc6 {[%emt 0:00:28]} 34. Re1 {[%emt 0:02:34]} f4 {[%emt 0:00:35] The position is equal.} 35. Rb1 {[%emt 0:00:25]} g5 {[%emt 0:00:19]} 36. Ke2 {[%emt 0:00:30]} Kg6 {[%emt 0:00:10]} 37. Rb2 {[%emt 0:01:41]} h5 {[%emt 0:00:29][%cal Og5g4]} 38. Nc3 {[%emt 0:00:29]} Rb8 {[%emt 0:00:55]} 39. Rxb8 {[%emt 0:01:01]} Nxb8 {[%emt 0:00:10]} 40. Qb3 {[%emt 0:01:15] An interesting draw.   Weighted Error Value: White=0.04 (flawless) /Black=0.04 (flawless) .  OK:         	White=8     	Black=14} 1/2-1/2

[Event "1st Jeddah Young Masters 2024"]
[Site "Jeddah"]
[Date "2024.01.29"]
[Round "8.3"]
[White "Seemann, Jakub"]
[Black "Oro, Faustino"]
[Result "1-0"]
[ECO "B04"]
[WhiteElo "2439"]
[BlackElo "2357"]
[Annotator "TA"]
[PlyCount "37"]
[EventDate "2024.01.24"]
[EventType "tourn"]
[SourceTitle "playchess.com"]
[Source "ChessBase"]
[SourceQuality "1"]
[TimeControl "5400+30"]

{[%evp 11,37,27,22,-3,82,80,116,72,131,122,197,165,366,383,373,364,377,372,372,345,344,342,1043,1057,967,895,1702,903]} 1. e4 {[%emt 0:00:03]} Nf6 {[%emt 0:00:11]} 2. e5 {[%emt 0:00:34]} Nd5 {[%emt 0:00:09]} 3. d4 {[%emt 0:00:08]} d6 {[%emt 0:00:06]} 4. Nf3 {[%emt 0:00:35]} dxe5 {[%emt 0:00:10]} 5. Nxe5 {[%emt 0:00:20]} c6 {[%emt 0:00:24]} 6. Bc4 {[%emt 0:06:44]} Nd7 {[%emt 0:01:56]} 7. O-O {[%emt 0:02:07]} N7f6 {[%emt 0:05:44]} (7... Nxe5 $11 {remains equal.} 8. dxe5 Bf5) 8. Re1 {[%emt 0:05:11]} Bf5 {[%emt 0:05:46]} 9. Qf3 {[%emt 0:06:47] White is better.} Be6 {[%emt 0:12:24]} (9... g6 $142) 10. Bb3 $40 {[%emt 0:16:16][%mdl 128] Black must now prevent c4. White wants a kill. White has more active pieces.} Nc7 {[%emt 0:13:52]} (10... g6 $16 {was worth a try.}) 11. c4 {[%emt 0:06:21][%cal Od4d5] Strongly threatening d5!} g6 $2 {[%emt 0:11:25] [#]} (11... Qxd4 {was necessary.} 12. Nc3 h6) 12. d5 $1 $18 {[%emt 0:06:42][%mdl 512]} Ncxd5 {[%emt 0:05:51]} 13. cxd5 {[%emt 0:00:22]} Nxd5 {[%emt 0:01:26]} 14. Nc3 {[%emt 0:01:20] aiming for Nxd5.} Bg7 {[%emt 0:02:05]} 15. Nxd5 {[%emt 0:00:36]} Bxd5 {[%emt 0:00:27]} 16. Nxf7 {[%emt 0:07:07]} Qa5 {[%emt 0:00:12] [#]} (16... Bxf3 17. Nxd8 Rxd8 18. gxf3 Rd7) 17. Nd6+ {[%emt 0:00:19] White is clearly winning.} Kd7 {[%emt 0:00:06]} 18. Qe2 {[%emt 0:00:12]} (18. Nxb7 $2 Qxe1#) 18... exd6 {[%emt 0:00:13]} 19. Bd2 {[%emt 0:00:09] Black did not feel at home in the position after the opening.   Weighted Error Value: White=0.15 (very precise) /Black=0.65.  Mistake:       	---       	Black=5      Inaccurate:     	White=1     	Black=1      OK:         	White=1     	Black=1      Best:        	White=1     	Black=2      Brilliant:      	White=1     	---} 1-0

[Event "1st Jeddah Young Masters 2024"]
[Site "Jeddah"]
[Date "2024.01.29"]
[Round "8.4"]
[White "Rey Martinez, Jaime"]
[Black "Woodward, Andy"]
[Result "0-1"]
[ECO "B90"]
[WhiteElo "2342"]
[BlackElo "2501"]
[Annotator "TA"]
[PlyCount "70"]
[EventDate "2024.01.24"]
[EventType "tourn"]
[SourceTitle "playchess.com"]
[Source "ChessBase"]
[SourceQuality "1"]
[TimeControl "5400+30"]

{[%evp 11,70,-30,-6,-45,-32,-62,-36,-25,-30,-33,0,-41,-13,-16,-37,-13,-39,-34,42,-107,-94,-84,-93,-104,-100,-101,-97,-177,-184,-187,-168,-161,0,-29,0,0,0,-163,-167,-193,-199,-191,-180,-412,-288,-732,-730,-810,-797,-1099,-990,-952,-975,-1205,-1194,-5900,-5314,-29986,-29987,-29993,-29994]} 1. e4 {[%emt 0:00:09]} c5 {[%emt 0:00:15]} 2. Nf3 {[%emt 0:00:14]} d6 {[%emt 0:00:09]} 3. d4 {[%emt 0:00:06]} cxd4 {[%emt 1:31:36]} 4. Nxd4 {[%emt 0:00:05]} Nf6 {[%emt 1:32:00]} 5. Nc3 {[%emt 0:00:05]} a6 {[%emt 0:00:07]} 6. Rg1 {[%emt 0:00:07]} b5 {[%emt 0:00:38]} 7. a4 {[%emt 0:00:17]} b4 {[%emt 0:00:19]} 8. Nd5 {[%emt 0:00:05]} Nxd5 {[%emt 0:00:16]} (8... Nxe4 {is more complex.} 9. Bc4 e6 10. Qe2 Nf6) 9. exd5 {[%emt 0:00:06] Black is slightly better.} Bb7 {[%emt 0:00:09]} 10. Bc4 {[%emt 0:01:30]} Nd7 {[%emt 0:10:20]} 11. a5 {[%emt 0:02:01]} (11. Qe2 $5) 11... Qc7 {[%emt 0:02:03]} 12. Qe2 {[%emt 0:03:34]} g6 {[%emt 0:18:10]} 13. Bg5 {[%emt 0:06:23]} h6 {[%emt 0:17:42]} 14. Bh4 {[%emt 0:02:07][%cal Bg5h4,Bh4f2,Bf2e3][%mdl 32]} Nc5 {[%emt 0:00:34]} (14... Rc8 $15 15. Nc6 (15. Bxa6 $2 Bxa6 16. Qxa6 Bg7 $19) 15... Bxc6 16. dxc6 Qxc6 17. Bxa6 Rb8) 15. f4 {[%emt 0:08:33]} (15. Bf6 $14 {stays ahead.} Rg8 16. Nb3) 15... Bg7 $17 {[%emt 0:01:59]} 16. Bf2 {[%emt 0:01:06]} O-O {[%emt 0:02:23][%cal Oe7e6] Hoping for ...e6!} 17. f5 {[%emt 0:02:59] [#]} Ne4 $1 {[%emt 0:06:18][%mdl 512] ...Nxf2 is the strong threat.} 18. Be3 {[%emt 0:00:43]} Rac8 {[%emt 0:02:51] Black is more active.} 19. Bd3 {[%emt 0:13:15] [#]} (19. Bb3 $17 {was worth a try.} Nc5 20. fxg6) 19... Nc3 $1 $19 {[%emt 0:02:44][%mdl 512]} 20. Qg4 {[%emt 0:04:15]} (20. bxc3 Qxc3+) 20... Nxd5 {[%emt 0:00:59]} 21. Bxh6 {[%emt 0:02:07]} Nf6 $2 {[%emt 0:04:38]} ({Black should play} 21... Bxh6 $19 22. fxg6 Nf4 23. gxf7+ Kh8 (23... Kxf7 24. Rf1 $11)) 22. Qh4 {[%emt 0:02:18]} Bxh6 {[%emt 0:02:20]} 23. Qxh6 {[%emt 0:00:36]} Qc5 $36 {[%emt 0:00:12][%mdl 2048] Black fights for an advantage.} 24. Ne2 {[%emt 0:15:17]} (24. fxg6 $1 $11 Qxd4 25. Rf1 Qxb2 (25... Bxg2 $2 26. Rxf6 Qe5+ 27. Kd1 $18) (25... Qe5+ 26. Kd2 $11) 26. Rxf6 Qxa1+ 27. Ke2 Qe5+ (27... exf6 28. Qh7#) (27... Rxc2+ 28. Bxc2 Qe5+ 29. Kd2 $11) 28. Kd1 Qa1+ (28... exf6 29. Qh7#) (28... Bf3+ 29. gxf3 Qa1+ 30. Ke2) 29. Ke2 Rxc2+ (29... exf6 30. Qh7#) 30. Bxc2 Qe5+ (30... Qxf6 31. Qh7#) 31. Kd1 Qa1+ (31... Qxf6 32. Qh7#) 32. Ke2 Qe5+ (32... Qxf6 33. Qh7#) 33. Kd1 Qd4+ (33... Qxf6 34. Qh7#) 34. Ke2 Qe5+ (34... Qxf6 35. Qh7#)) 24... Ng4 {[%emt 0:00:55]} (24... gxf5 $2 25. Rf1 f4 (25... Bxg2 $2 26. Rxf5 $18) (25... Be4 $2 26. Rf4 $18) 26. Rxf4 $18 (26. Qxf4 Qe5 $16)) 25. Qh4 {[%emt 0:35:02] [#]} Ne5 {[%emt 0:00:50]} (25... gxf5 $2 {too greedy.} 26. Qg5+ Kh8 27. Bxf5 $18) 26. fxg6 {[%emt 0:03:03]} fxg6 {[%emt 0:00:37][%cal Ob7g2]} 27. Qg3 {[%emt 0:30:27]} (27. Qd4) 27... Kg7 {[%emt 0:26:17] Threatens to win with ...Rf6.} (27... Nxd3+ $2 28. cxd3 Qh5 29. Kd1 $19) 28. O-O-O $2 {[%emt 0:03:55]} (28. Rd1) 28... Rf2 {[%emt 0:00:25][%cal Of2e2] aiming for ...Rxe2!} (28... Qxa5 $2 29. Kb1 $19) 29. Rge1 {[%emt 0:02:39]} Rxg2 {[%emt 0:00:11]} ({Less strong is} 29... Bxg2 30. Nd4 Qxd4 31. Rxe5 Qxe5 (31... dxe5 $2 {loses.} 32. Qxg6+ Kf8 33. Qh6+ Ke8 34. Bg6+ Kd7 35. Rxd4+ exd4 36. Qh4 $18) 32. Qxf2 $17) 30. Qh3 {[%emt 0:00:28] [#]} Rxh2 $3 {[%emt 0:00:19][%mdl 512]} 31. Qg3 {[%emt 0:00:21]} Rg2 {[%emt 0:02:33]} 32. Qh3 {[%emt 0:00:03]} Bf3 {[%emt 0:02:44]} 33. Nd4 {[%emt 0:00:35]} Qxd4 {[%emt 0:01:23]} 34. Qxc8 {[%emt 0:00:22]} Bxd1 {[%emt 0:00:05]} 35. Kxd1 {[%emt 0:00:35]} Qf4 {[%emt 0:00:26] Weighted Error Value: White=1.05/Black=0.25 (precise) .  Loses game:     	White=1     	---        Missed win:     	---       	Black=1      Mistake:       	White=4     	Black=1      Inaccurate:     	White=2     	Black=5      OK:         	White=8     	Black=4      Best:        	White=1     	Black=4      Brilliant:      	---       	Black=1} 0-1

[Event "1st Jeddah Young Masters 2024"]
[Site "Jeddah"]
[Date "2024.01.29"]
[Round "8.5"]
[White "Sadhwani, Raunak"]
[Black "Erdogmus, Yagiz Kaan"]
[Result "1/2-1/2"]
[ECO "B46"]
[WhiteElo "2654"]
[BlackElo "2524"]
[Annotator "TA"]
[PlyCount "54"]
[EventDate "2024.01.24"]
[EventType "tourn"]
[SourceTitle "playchess.com"]
[Source "ChessBase"]
[SourceQuality "1"]
[TimeControl "5400+30"]

{[%evp 11,54,31,52,-15,-12,-18,-16,-37,-17,-29,-32,-25,-24,-32,-17,0,-4,0,13,0,38,43,43,47,39,58,36,21,34,0,0,22,0,-110,-91,-110,-87,-194,-166,-257,-281,-275,-287,-244,-31]} 1. e4 {[%emt 0:00:32]} c5 {[%emt 0:00:11]} 2. Nf3 {[%emt 0:00:04]} e6 {[%emt 0:00:09]} 3. d4 {[%emt 0:00:09]} cxd4 {[%emt 0:00:04]} 4. Nxd4 {[%emt 0:00:04]} Nc6 {[%emt 0:00:06]} 5. Nc3 {[%emt 0:00:47]} Qc7 {[%emt 0:00:25]} 6. a3 {[%emt 0:06:26]} a6 {[%emt 0:01:58]} 7. h4 {[%emt 0:06:52]} ({White should play} 7. Be3 $14) 7... b5 {[%emt 0:19:40]} 8. h5 {[%emt 0:00:23]} h6 {[%emt 0:07:26]} 9. Nb3 {[%emt 0:12:52] The position is equal.} Nf6 {[%emt 0:05:44]} 10. f4 {[%emt 0:19:18]} b4 {[%emt 0:10:47]} 11. axb4 {[%emt 0:00:50]} Bxb4 {[%emt 0:05:57]} 12. Bd3 {[%emt 0:06:30]} O-O {[%emt 0:20:21][%cal Oc6d4]} 13. O-O {[%emt 0:02:19]} Bxc3 {[%emt 0:02:44]} 14. bxc3 {[%emt 0:00:05] Threatens to win with e5.} d6 {[%emt 0:01:16]} 15. g4 {[%emt 0:05:18]} Ne7 {[%emt 0:07:47][%cal Oe6e5]} 16. c4 {[%emt 0:02:57]} Bb7 {[%emt 0:06:42]} 17. Qe2 {[%emt 0:00:59]} d5 {[%emt 0:01:43]} 18. cxd5 {[%emt 0:02:02]} exd5 {[%emt 0:00:04]} 19. e5 {[%emt 0:01:06]} (19. Bxa6 $2 Qb6+ (19... Nxe4 $2 20. Bxb7 Rxa1 21. Nxa1 $19) 20. Qe3 Qxe3+ (20... Rxa6 $2 21. Qxb6 Rxb6 22. Be3 $19) 21. Bxe3 Bxa6 $19 (21... Rxa6 $2 22. e5 $19)) 19... Ne4 {[%emt 0:00:05]} 20. Qe3 {[%emt 0:00:21] Prevents Ng3.} (20. Bxa6 $2 Rxa6 (20... Qb6+ $2 21. Be3 $19) 21. Rxa6 Ng3 $19 (21... Bxa6 $2 22. Qxa6 Qxc2 23. Nd4 $19)) 20... Bc8 $36 {[%emt 0:01:40][%mdl 2048] Black is more active.} 21. c4 {[%emt 0:03:54] [#] Strongly threatening cxd5.} Nc3 {[%emt 0:04:03] Excellent horsemanship.} (21... Rb8 $2 22. cxd5 Rxb3 23. Qxe4 Rxd3 24. Qxd3 $18) 22. Nd4 {[%emt 0:06:31]} (22. c5 $11 {keeps the balance.}) 22... dxc4 $17 {[%emt 0:01:16]} 23. Bc2 {[%emt 0:01:32]} Ned5 {[%emt 0:00:10]} 24. Qf2 {[%emt 0:00:06]} (24. Qd2 $17 Rd8 (24... Bxg4 25. Ra3 $15) 25. Kh2) 24... Bxg4 $19 {[%emt 0:00:49]} 25. Kh2 {[%emt 0:00:35]} (25. Ba3 $142) 25... f6 {[%emt 0:00:41]} (25... Bxh5 26. Rg1 $17) 26. e6 {[%emt 0:00:34]} f5 {[%emt 0:00:23]} ({Weaker is} 26... Bxh5 27. Qh4 Ne2 28. e7 (28. Nf5 g6 $11) 28... Nxe7 (28... Nxd4 29. exf8=Q+ Rxf8 30. Qxh5 $16) 29. Ne6 $11) 27. Ba3 {[%emt 0:02:31] [#]} Qd8 $2 {Weighted Error Value: White=0.27 (precise) /Black=0.04 (flawless) .  Missed win:     	---       	Black=1      Mistake:       	White=3     	---        Inaccurate:     	White=1     	Black=1      OK:         	White=11    	Black=11     Best:        	---       	Black=2} 1/2-1/2

[Event "1st Jeddah Young Masters 2024"]
[Site "Jeddah"]
[Date "2024.01.30"]
[Round "9.1"]
[White "Erdogmus, Yagiz Kaan"]
[Black "Murzin, Volodar"]
[Result "0-1"]
[ECO "E61"]
[WhiteElo "2524"]
[BlackElo "2635"]
[Annotator "TA"]
[PlyCount "84"]
[EventDate "2024.01.24"]
[EventType "tourn"]
[SourceTitle "playchess.com"]
[Source "ChessBase"]
[SourceQuality "1"]
[TimeControl "5400+30"]

{[%evp 9,84,16,31,29,45,37,76,50,66,48,64,64,56,53,68,59,80,94,87,102,80,75,61,62,74,65,67,64,134,119,139,68,70,72,68,65,43,52,62,43,50,0,0,0,0,0,0,0,9,8,4,6,9,8,8,0,12,0,0,-8,-10,-9,-10,-147,-128,-168,-173,-165,-185,-241,0,0,0,-18,-18,-2272,-1808]} 1. d4 {[%emt 0:00:04]} Nf6 {[%emt 0:02:59]} 2. c4 {[%emt 0:00:20]} g6 {[%emt 0:02:13]} 3. g3 {[%emt 0:00:30]} Bg7 {[%emt 0:07:11]} 4. Bg2 {[%emt 0:01:31]} d6 {[%emt 0:00:08]} 5. Nc3 {[%emt 0:01:55]} Nc6 {[%emt 0:11:15]} 6. Nf3 {[%emt 0:00:46]} Bd7 {[%emt 0:00:34]} 7. O-O {[%emt 0:10:22]} Qc8 {[%emt 0:02:21]} 8. d5 {[%emt 0:12:52] White is better.} Na5 {[%emt 0:00:26]} 9. Qd3 {[%emt 0:03:44] b4 is the strong threat.} c5 {[%emt 0:03:51]} 10. e4 {[%emt 0:02:31][%cal Be2e4,Be4e5][%mdl 32]} O-O {[%emt 0:00:50]} 11. Bd2 {[%emt 0:10:22]} a6 {[%emt 0:07:07][%cal Ob7b5]} 12. e5 {[%emt 0:07:05]} Bf5 {[%emt 0:23:15]} 13. Qe2 $36 {[%emt 0:00:32][%mdl 2048] White has strong initiative.} Nd7 {[%emt 0:03:09]} 14. e6 {[%emt 0:23:53]} fxe6 {[%emt 0:06:19]} 15. dxe6 {[%emt 0:02:15]} Ne5 {[%emt 0:14:13]} 16. Nxe5 {[%emt 0:00:54]} Bxe5 {[%emt 0:00:02]} 17. Nd5 {[%emt 0:02:59][%csl LRa5,LRe7]} Nc6 {[%emt 0:00:02][%cal Oa8b8]} 18. Bh6 {[%emt 0:11:18]} Bg7 {[%emt 0:01:35]} (18... Rb8 $14) 19. Bxg7 $16 {[%emt 0:03:18]} Kxg7 {[%emt 0:00:04]} 20. Nb6 {[%emt 0:01:09]} (20. Rfe1 $1 $16) 20... Nd4 $1 $14 {[%emt 0:06:59]} 21. Qe3 {[%emt 0:00:55]} Qxe6 {[%emt 0:00:23]} 22. Nxa8 {[%emt 0:00:42]} Rxa8 {[%emt 0:00:01]} 23. Rae1 {[%emt 0:00:46]} Qxe3 {[%emt 0:00:54]} 24. Rxe3 {[%emt 0:00:07]} Kf6 {[%emt 0:00:03]} 25. b3 {[%emt 0:01:32]} (25. Bxb7 Rb8 26. Be4 Bxe4 27. Rxe4 Rxb2 $11) ({White should try} 25. Be4 $14) 25... Rb8 $11 {[%emt 0:00:26]} 26. Rd1 {[%emt 0:00:33][%cal Ob3b4]} b5 {[%emt 0:01:14]} 27. cxb5 {[%emt 0:00:30]} axb5 {[%emt 0:00:46]} 28. b4 {[%emt 0:00:27]} e5 {[%emt 0:00:47]} 29. bxc5 {[%emt 0:00:17]} dxc5 {[%emt 0:00:01]} 30. f4 {[%emt 0:00:24]} exf4 {[%emt 0:00:21]} 31. gxf4 {[%emt 0:00:01]} Rb6 {[%emt 0:01:43]} 32. Re5 {[%emt 0:00:43]} Ne6 {[%emt 0:00:03][%cal Oc5c4]} 33. Rdd5 {[%emt 0:01:00]} Ra6 {[%emt 0:03:26]} 34. Bf1 {[%emt 0:00:21] Wards off c4} Rxa2 {[%emt 0:00:40] Strongly threatening ...Nd4.} 35. Rd6 {[%emt 0:00:40]} c4 {[%emt 0:00:09] And now ...c3 would win.} 36. Rc6 {[%emt 0:00:36]} (36. Re3 $1 $11) 36... Rb2 {[%emt 0:00:38] Black is more active.} 37. Bg2 {[%emt 0:00:31]} Kg7 $1 {[%emt 0:00:38]} 38. Be4 {[%emt 0:00:29] [#]} Nd4 {[%emt 0:00:10]} (38... Nxf4 39. Bxf5 Ne2+ 40. Rxe2 (40. Kf1 Nd4 $11) 40... Rxe2 41. Be6 $16) 39. Rc7+ {[%emt 0:00:05] [#]} (39. Rd6 $142 Bxe4 40. Rxd4) 39... Kf6 $2 {[%emt 0:01:18]} (39... Kh6 $1 $19 {White must now prevent ...Bxe4.} 40. Ree7 Kh5 (40... Ne2+ 41. Kf2 $17) 41. Bxf5 Nxf5 (41... gxf5 42. Rxh7+ Kg4 43. Rh8 $17) 42. Rxh7+ Kg4) 40. Bd5 {[%emt 0:00:18]} Be6 {[%emt 0:00:24] Dodges Rf7+. Threatens to win with ...Ne2+.} ({Don't blunder} 40... Ne2+ $2 41. Rxe2 g5 42. Rxb2 $18) 41. Rc6 {[%emt 0:00:55]} c3 {[%emt 0:01:02] Dancing on a razor blade.} 42. Bxe6 $2 {[%emt 0:00:44][%mdl 8192]} Nxc6 {[%emt 0:00:06] Weighted Error Value: White=0.26 (precise) /Black=0.16 (very precise) .  Loses game:     	White=1     	---        Missed win:     	---       	Black=1      Mistake:       	White=4     	Black=1      Inaccurate:     	White=2     	Black=1      OK:         	White=16    	Black=18     Best:        	White=1     	Black=1      Strong:       	---       	Black=2} 0-1